Cogmind - Beta 14 @@@ ROGUE MODE // 2024.11.16 @ 16:40:24 Player: Mathewnd Result: Destroyed by G-47 Trooper with Particle Gun Performance ------------- Evolutions (3) 1500 Regions Visited (4) 800 Robots Destroyed (41) 205 Value Destroyed (1085) 1085 Prototype IDs (0) 0 Alien Tech Used (0) 0 Bonus (41) 41 TOTAL SCORE: 3631 Bonus ------- High Alert Combat Kills 41 Cogmind --------- Core Integrity 0/700 Matter 266/300 Energy 22/100 System Corruption 0% Temperature Cool (9) Movement Core (150) Ox2 Location -7/Factory Parts ------- > --- POWER (2) -------- (None) > --- PROPULSION (4) --- (None) > --- UTILITY (4) ------ (None) > --- WEAPON (3) ------- Heavy Laser Axe > --- INVENTORY (5) ---- Improved Deuterium Engine Matter Filter Hacking Suite Peak State ------------ > --- POWER ------------ Light Ion Engine Improved Ion Engine > --- PROPULSION ------- Improved Hover Unit Improved Hover Unit Improved Hover Unit Improved Hover Unit > --- UTILITY ---------- Visual Processing Unit ECM Suite Reaction Control System > --- WEAPON ----------- Shock Rifle Shock Rifle Gauss Cannon > --- INVENTORY -------- Improved Carbon-fiber Leg Improved Medium Armor Plating Hardlight Generator Hacking Suite [Rating: 28] Favorites ----------- Power Light Ion Engine Engine Light Ion Engine Power Core Light Nuclear Core Propulsion Improved Hover Unit Treads Medium Treads Leg Aluminum Leg Wheel Wheel Hover Unit Improved Hover Unit Flight Unit Flight Unit Utility ECM Suite Device ECM Suite Processor Visual Processing Unit Protection Improved Medium Armor Plating Weapon Shock Rifle Energy Gun Shock Rifle Ballistic Gun Autogun Ballistic Cannon Gauss Cannon Slashing Weapon Axe Build | -11 -10 -9 -8 -7 ------- Run | Yrd Mat Mat Mat Fac Slots Evolved 6 | . . 2 2 2 Power 1 | . . 1 . . Propulsion 2 | . . 1 . 1 Utility 2 | . . . 1 1 Weapon 1 | . . . 1 . Parts Attached 41 | 5 4 17 5 10 Power 8 | 1 1 3 2 1 Engine 7 | 1 1 3 2 . Core 1 | . . . . 1 Reactor . | . . . . . Propulsion 14 | 2 2 7 . 3 Treads 1 | . . . . 1 Leg 5 | . . 4 . 1 Wheel 2 | 2 . . . . Hover 4 | . . 3 . 1 Flight 2 | . 2 . . . Utility 8 | . 1 3 1 3 Device 5 | . 1 2 . 2 Storage . | . . . . . Processor 2 | . . 1 1 . Hackware . | . . . . . Protection 1 | . . . . 1 Artifact . | . . . . . Weapon 11 | 2 . 4 2 3 Energy Gun 7 | 2 . 2 2 1 Energy Cannon . | . . . . . Ballistic Gun 2 | . . 2 . . Ballistic Cannon 1 | . . . . 1 Launcher . | . . . . . Special Weapon . | . . . . . Impact Weapon . | . . . . . Slashing Weapon 1 | . . . . 1 Piercing Weapon . | . . . . . Special Melee Weapon . | . . . . . Unidentified Prototypes . | . . . . . Parts Lost 20 | . 1 3 . 16 Power 6 | . 1 2 . 3 Propulsion 6 | . . 1 . 5 Utility 5 | . . . . 5 Weapon 3 | . . . . 3 Highest Loss Streak 10 | . 1 1 . 10 To Critical Strikes . | . . . . . Average Slot Usage (%) 76 | . 71 92 91 55 Engine 13 | . 12 20 18 6 Leg 8 | . . 23 . 2 Wheel 1 | . 21 . . . Hover 11 | . . 3 27 12 Flight 1 | . 7 2 . . Device 11 | . 6 14 9 9 Processor 6 | . . 6 10 6 Energy Gun 12 | . 24 2 26 10 Ballistic Gun 6 | . . 19 . . Peak Build Rating 28 | 5 6 15 21 28 Average Rating 14 | 3 5 11 19 17 On Entrance 9 | . 5 5 15 20 Naked Turns . | . . . . . Heaviest Build 26 | 7 10 18 21 26 Greatest Support 36 | 20 20 36 21 28 Greatest Overweight (x) 6 | . . 2 6 4 Average Overweight (x) . | . . . . . Largest Inventory Capacity 5 | 5 5 5 5 5 Average Capacity 5 | 5 5 5 5 5 Most Carried 5 | 5 5 5 5 5 Average Carried 3 | 2 4 4 3 3 Final Capacity 5 | 5 5 5 5 5 Final Carried 5 | 4 5 3 3 3 Class Distribution -------------------- 52% | Mutant 18% | Skirmisher 15% | Scavenger-Mutant 10% | Gunner 3% | Tank Dominant Class ---------------- Mutant | -10/Materials Mutant | -9/Materials Gunner | -8/Materials Mutant | -7/Factory Resources | -11 -10 -9 -8 -7 ----------- Run | Yrd Mat Mat Mat Fac Matter Collected 1066 | 250 40 539 125 112 Remotely . | . . . . . Salvage Created 1267 | 42 91 608 294 232 Parts 90 | 3 3 51 22 11 Haulers Intercepted . | . . . . . Recyclers Shooed . | . . . . . Parts Field Recycled . | . . . . . Retrieved Matter . | . . . . . Parts Self-Destructed . | . . . . . Prevented . | . . . . . Kills | -11 -10 -9 -8 -7 ------- Run | Yrd Mat Mat Mat Fac Combat Hostiles Destroyed 38 | 1 2 18 11 6 Guns 34 | 1 2 18 10 3 Cannons 2 | . . . . 2 AOE 1 | . . . 1 . Classes Destroyed 8 | 1 . 3 2 2 Worker 1 | . . 1 . . Recycler 1 | . . . 1 . Watcher 1 | . . . 1 . Swarmer 20 | . . 7 10 3 Grunt 9 | 1 2 5 . 1 Duelist 1 | . . . . 1 Sentry 7 | . . 6 1 . Hunter 1 | . . . . 1 Best Kill Streak 6 | 1 1 6 5 2 Combat Bots Only 6 | 1 1 6 4 2 Max Kills in Single Turn 3 | 1 1 2 3 1 Gunslinging 2 | . . 1 2 . Exploded 1 | . . . 1 . Melee . | . . . . . Uniques/NPCs Destroyed . | . . . . . Combat | -11 -10 -9 -8 -7 -------- Run | Yrd Mat Mat Mat Fac Hostile Shots Fired 292 | 1 17 83 29 162 Missed 93 | 1 3 29 11 49 Damage Taken 2902 | . 211 634 159 1898 Core 906 | . 54 106 45 701 Absorbed by Shields . | . . . . . Core Remaining (%) 85 | 100 78 73 91 . Volleys Fired 138 | 1 9 52 24 52 Largest 3 | 2 2 2 3 3 Hottest 165 | 80 80 130 165 148 Shots Fired 247 | 2 18 104 61 62 Gun 226 | 2 18 104 61 41 Cannon 21 | . . . . 21 Launcher . | . . . . . Special . | . . . . . Kinetic 117 | . . 96 . 21 Thermal 47 | . . 8 13 26 Explosive . | . . . . . Electromagnetic 83 | 2 18 . 48 15 Robot Hit Streak 12 | 2 5 10 6 12 Robot Miss Streak 6 | . 3 6 6 6 Penetration Max . | . . . . . Secondary Targets 3 | . . 1 2 . Max Gunslinging Chain 2 | . . 1 2 . Shots Hit Robots 146 | 2 11 64 28 41 Core Hits 77 | 2 5 34 26 10 Critical Kills 1 | . . 1 . . Critical Parts Destroyed . | . . . . . Critical Strikes 2 | . . 1 . 1 Destroy 1 | . . 1 . . Blast 1 | . . . . 1 Melee Attacks 1 | . . . . 1 Impact . | . . . . . Slashing 1 | . . . . 1 Piercing . | . . . . . Sneak Attacks . | . . . . . Combat Hostiles . | . . . . . Follow-up Attacks . | . . . . . Damage Inflicted 2488 | 27 212 927 544 778 Guns 2072 | 27 147 927 448 523 Cannons 216 | . . . . 216 Explosions 161 | . 65 . 96 . Melee 39 | . . . . 39 Ramming . | . . . . . Kinetic 1046 | . . 830 . 216 Thermal 682 | . 65 97 177 343 Explosive . | . . . . . Electromagnetic 721 | 27 147 . 367 180 Impact . | . . . . . Slashing 39 | . . . . 39 Piercing . | . . . . . Highest Corruption . | . . . . . Average Corruption . | . . . . . Corruption Purged . | . . . . . Corruption Blocked . | . . . . . Overload Shots . | . . . . . Overflow Damage 24 | . . . 10 14 Projectiles 14 | . . . . 14 Explosions 10 | . . . 10 . Melee . | . . . . . Knockbacks 2 | . . . . 2 Impact . | . . . . . Kinetic 2 | . . . . 2 Secondary . | . . . . . Self-Inflicted Damage . | . . . . . Shots . | . . . . . Rammed . | . . . . . Targets Rammed . | . . . . . Kicked . | . . . . . Crushed . | . . . . . Highest Temperature 513 | 18 106 177 513 195 Average Temperature 91 | 12 68 37 172 49 Received Heat Transfer 1053 | . 132 246 18 657 Effects 8 | . . . 8 . Shutdowns 3 | . . . 3 . Energy Bleed 1 | . . . 1 . Matter Decay 1 | . . . 1 . Short Circuit 1 | . . . 1 . Damage (minor) 2 | . . . 2 . Siege Activations . | . . . . . Robots Corrupted 1 | . . . . 1 Combat Hostiles 1 | . . . . 1 Parts Fried 6 | . . . 3 3 Impact Corruptions . | . . . . . Robots Melted . | . . . . . Combat Hostiles . | . . . . . Parts Melted 2 | . . . . 2 Heat Transferred 1146 | . 50 125 305 666 Parts Sabotaged . | . . . . . Parts Stolen . | . . . . . Parts Stripped . | . . . . . Power Chain Reactions 2 | . 1 . 1 . Alert | -11 -10 -9 -8 -7 ------- Run | Yrd Mat Mat Mat Fac Peak Influence 670 | 20 53 478 670 339 Initial 304 | . 13 22 201 304 Average 266 | 7 35 289 469 236 Maximum Alert Level 2 | . . 2 2 1 Low Security (%) 39 | 100 100 28 . 44 Level 1 44 | . . 56 33 55 Level 2 16 | . . 14 66 . Level 3 . | . . . . . Level 4 . | . . . . . Level 5 . | . . . . . High Security . | . . . . . Max Security . | . . . . . Squads Dispatched 5 | . 1 1 1 2 Investigation 1 | . . . . 1 Extermination . | . . . . . Reinforcement 4 | . 1 1 1 1 Assault . | . . . . . Garrison . | . . . . . Intercept . | . . . . . Searches Triggered . | . . . . . Construction Impeded . | . . . . . Haulers Reinforced . | . . . . . Active Scanning Responses . | . . . . . Cargo Convoy Interrupts . | . . . . . Stealth | -11 -10 -9 -8 -7 --------- Run | Yrd Mat Mat Mat Fac Distress Signals 5 | . . 3 2 . Communications Jammed . | . . . . . Distress Signals . | . . . . . Times Spotted 76 | 1 3 32 21 19 Peak Tracking Total 8 | 1 3 4 8 6 Tactical Retreats 10 | . . 4 2 4 Traps | -11 -10 -9 -8 -7 ------- Run | Yrd Mat Mat Mat Fac Traps Triggered 1 | . . . . 1 Indirectly . | . . . . . Trap Hack Attempts . | . . . . . Triggered . | . . . . . Disarmed . | . . . . . Reprogrammed . | . . . . . Reused . | . . . . . Traps Extracted . | . . . . . Installed . | . . . . . Triggered . | . . . . . Machines | -11 -10 -9 -8 -7 ---------- Run | Yrd Mat Mat Mat Fac Machines Disabled 5 | . . 2 2 1 Max in Single Turn 1 | . . 1 1 1 Machines Repaired . | . . . . . Machines Dismantled . | . . . . . Machines Sabotaged . | . . . . . Overloaded Fab Kills . | . . . . . Hacking | -11 -10 -9 -8 -7 --------- Run | Yrd Mat Mat Mat Fac Machines Accessed 1 | . . 1 . . Terminals 1 | . . 1 . . Fabricators . | . . . . . Repair Stations . | . . . . . Recycling Units . | . . . . . Scanalyzers . | . . . . . Garrison Access . | . . . . . Total Hacks 1 | . . 1 . . Successful 1 | . . 1 . . Failed . | . . . . . Catastrophic . | . . . . . Database Lockouts . | . . . . . Manual . | . . . . . Terminals 1 | . . 1 . . Fabricators . | . . . . . Repair Stations . | . . . . . Recycling Units . | . . . . . Scanalyzers . | . . . . . Garrison Access . | . . . . . Terminal Hacks 1 | . . 1 . . Record 1 | . . 1 . . Fabricator Hacks . | . . . . . Repair Station Hacks . | . . . . . Recycling Unit Hacks . | . . . . . Scanalyzer . | . . . . . Garrison Access Hacks . | . . . . . Unauthorized Hacks . | . . . . . Terminals . | . . . . . Fabricators . | . . . . . Repair Stations . | . . . . . Recycling Units . | . . . . . Scanalyzers . | . . . . . Garrison Access . | . . . . . Data Cores Recovered . | . . . . . Used . | . . . . . Hacking Detections . | . . . . . Full Trace Events . | . . . . . Feedback Events . | . . . . . Feedback Blocked . | . . . . . Robot Schematics Acquired . | . . . . . Robots Built . | . . . . . Authchips . | . . . . . Time . | . . . . . Total Robot Build Rating . | . . . . . Part Schematics Acquired . | . . . . . Parts Built . | . . . . . Authchips . | . . . . . Time . | . . . . . Total Part Build Rating . | . . . . . Parts Repaired . | . . . . . Time . | . . . . . Parts Recycled . | . . . . . Recycled Matter . | . . . . . Retrieved Matter . | . . . . . Retrieved Components . | . . . . . Parts Scanalyzed . | . . . . . Part Schematics Acquired . | . . . . . Parts Damaged . | . . . . . Bothacking | -11 -10 -9 -8 -7 ------------ Run | Yrd Mat Mat Mat Fac Used RIF Installer . | . . . . . Robots Hacked . | . . . . . Non-combat . | . . . . . Combat . | . . . . . Robot Hacks Applied . | . . . . . Relay Couplers Released . | . . . . . Fabnet Peak Effective % . | . . . . . Robots Rewired . | . . . . . Allies Hacked . | . . . . . Hacks Repelled . | . . . . . Allies | -11 -10 -9 -8 -7 -------- Run | Yrd Mat Mat Mat Fac Total Allies . | . . . . . Largest Group . | . . . . . Highest-Rated Group . | . . . . . Highest-Rated Ally . | . . . . . Total Orders . | . . . . . Ally Attacks . | . . . . . Total Damage . | . . . . . Kills . | . . . . . Allies Corrupted . | . . . . . Allies Melted . | . . . . . Intel | -11 -10 -9 -8 -7 ------- Run | Yrd Mat Mat Mat Fac Robot Analysis Total . | . . . . . Derelict Logs Recovered . | . . . . . Drone Launches . | . . . . . Drone Recoveries . | . . . . . Exploration | -11 -10 -9 -8 -7 ------------- Run | Yrd Mat Mat Mat Fac Turns Passed 1995 | 118 152 648 354 723 Spaces Moved 1825 | 86 190 469 365 715 Core 152 | 26 . . 1 125 Treads 4 | . . . . 4 Legs 466 | . . 296 . 170 Wheels 160 | 60 100 . . . Hover 821 | . . 41 364 416 Flight 222 | . 90 132 . . Fastest Speed 37 | 50 37 37 52 48 Average Speed 70 | 70 59 91 52 69 Slowest Speed 350 | 80 80 180 350 250 Overloaded Moves . | . . . . . Propulsion Burnouts . | . . . . . Robots Hopped . | . . . . . Cave-ins Triggered . | . . . . . Exploration Rate (%) 22 | 9 31 38 24 11 Regions Visited 4 Branch Regions . Pre-discovered Areas . | . . . . . Known Exits Taken . | . . . . . Unknown Exits Taken 4 | 1 1 1 1 . Scrap Searched . | . . . . . Spaces Dug . | . . . . . Terrain Destroyed 11 | . . . 2 9 Melee . | . . . . . Projectile 9 | . . . . 9 AOE 2 | . . . 2 . Terrain Rammed . | . . . . . Walls Destroyed . | . . . . . Machines Disabled . | . . . . . Actions | -11 -10 -9 -8 -7 --------- Run | Yrd Mat Mat Mat Fac Total 2317 | 140 211 612 476 878 Wait 242 | 40 3 40 74 85 Move 1821 | 85 189 468 364 715 Hop . | . . . . . Pick Up 47 | 9 3 18 5 12 Fast Attach . | . . . . . Attach 41 | 5 4 17 5 10 Detach 6 | . 2 4 . . Swap . | . . . . . Drop 21 | . 1 13 4 3 Fire 138 | 1 9 52 24 52 Melee 1 | . . . . 1 Ram . | . . . . . Kick . | . . . . . Crush . | . . . . . Escape Stasis . | . . . . . Rewire . | . . . . . Trap . | . . . . . Miscellaneous . | . . . . . Route ------- -11/Scrapyard -10/Materials -9/Materials -8/Materials -7/Factory History --------- Turn | Location | Event 2 | -11/Scrapyard | Met Revision 17 71 | -11/Scrapyard | Discovered new exit (range 8) 119 | -11/Scrapyard | Entered Materials 158 | -10/Materials | Discovered new exit (range 6) 271 | -10/Materials | Entered another Materials area 271 | -9/Materials | Evolved 2 slots: Power x1, Propulsion x1 307 | -9/Materials | Build established: Mutant 837 | -9/Materials | Build established: Scavenger-Mutant 911 | -9/Materials | Discovered new exit (range 13) 919 | -9/Materials | Entered another Materials area 919 | -8/Materials | Evolved 2 slots: Utility x1, Weapon x1 1012 | -8/Materials | Discovered new exit (range 15) 1273 | -8/Materials | Entered Factory 1273 | -7/Factory | Evolved 2 slots: Propulsion x1, Utility x1 1452 | -7/Factory | Build established: Skirmisher 1652 | -7/Factory | Lost 10 parts (2p4n1u3w) 1892 | -7/Factory | Core integrity fell below 50% 1895 | -7/Factory | Build established: Mutant 1981 | -7/Factory | Core integrity fell below 20% 1996 | -7/Factory | Destroyed by G-47 Trooper with Particle Gun Last Messages --------------- Acquired Med. Treads. [Achievement: Universal Adapter] Med. Treads severed. Visual Processing Unit destroyed. Critical hit (Burn: +37). Imp. Melee Analysis Suite melted. Core Shielding melted. L-41 Fighter destroyed. Acquired 69 matter. ECM Suite destroyed. Acquired Axe. Bump into an enemy to attack with the active melee weapon. Even while active, melee weapons do not fire together with ranged weapons in the same volley. Acquired Imp. Deuterium Engine. G-47 Trooper destroyed. Imp. Medium Armor Plating destroyed. Critical hit (Burn: +37). [Achievement: First Step to Greatness] Map ----- +----------------------------------------------------+ | ?????????????????????????????????????????????????? | | ?????????????????????????????????????????????????? | | ?????????????????????????????????????????????????? | | ?????????????????????????????????????????????????? | | ?????????????????????????????????????????????????? | | ?????????????????????????????????????????????????? | | ?????????????????????????????????????????????????? | | ?????????????????????????????????????????????????? | | ?????????????????????????????????????????????????? | | ?????????????????????????????????????????????????? | | ?????????????????????????????????????????????????? | | ?????????????????????????????????????????????????? | | ?????????????????????????????????????????????????? | | ?????????????????????????????????????????????????? | | ?????????????????????????????###########+######### | | ?????????????????????????????# | | ?????????????????????????????# | | ?????????????????????????????# | | ?????????????????????????????# | | ???????????????????########### | | ???????????????????# # ####+#######+## | | ???????????????????# # #?# | | ???????????????????# """*""" # #?# | | ???????????????????# """=""" + #?# | | ???????????????????# """%""" # #?# !! | | ???????????????????# g=@ g# #?# !! | | ???????????????????# ""Y"" # #?# ! | | ???????????????????# """"" # #?# ! | | ???????????????????########### #?# | | ?????????????????????????????# #?# """"" | | ?????????????????????????????# #?# """"" | | ?????????????????????????????# ?+ """ | | ?????????????????????????????# ### | | ?????????????????????????????# #?############# | | ?????????????????????????????# #?# | | ?????????????????????????????# #?# | | ????????????????????????????? #?# | | ????????????????????????????? #?# """" """" | | ????????????????????????????? #?# """" """" | | ????????????????????????????? ??# """" """" | | ???????????????????????????" [[[????# """" """" | | ???????????????????????????" [[[????# """" """" | | ??????????????????????????"" [[ ????# """" """" | | ??????????????????????????"" ????# | | ??????????????????????????"" ????# | | ???????????????????????????" ????# "T" | | ???????????????????????????? ????############# | | ?????????????????????????????? %????????????????? | | ????????????????????????########+#+#######???????? | | ????????????????????????# " ######### | +----------------------------------------------------+ Best States ------------- Heat Dissipation 38 Energy Generation 17 Energy Capacity 290 Matter Stores 300 Matter Capacity 300 Sight Range 18 Terrain Scan Density 10 ECM Strength 1 Additional Mass Support 6 Armor Coverage 225 Evasion (%) 63 Targeting Accuracy 5 Recoil Reduction 1 Item Schematics ----------------- None Robot Schematics ------------------ None Fabricated ------------ Nothing Alien Tech Used ----------------- None Achievements -------------- Crack Shot First Step to Greatness Gunslinger Made in Tau Ceti IV Power Corrupts Storm Trooper Uninvited Guest Universal Adapter Challenges ------------ None Game ------ Seed StasisCompositeMultitool Manual? 0 Play Time 01:34:12 Cumulative 1.5 hours Start 2024.11.16 @ 15:00:12 End 2024.11.16 @ 16:40:24 Sessions 1 Manual Loads 0 Difficulty Rogue Special Mode None Game No. 1 Rogue 1 Adventurer 0 Explorer 0 Win Type - Total 0 Types 0/0/0/0/0/0/0/0/0 Lore% 0 Gallery% 2 Achievement% 3 Wizard Run 0 Options --------- Layout 1 ASCII 0 Keyboard 0 Movement Mouse Keybinds 0 Fullscreen 1 Font 24/Smallcaps Map View 50x35 Zoom Use 0% Tactical HUD 0 Map Filters NONE Filters NONE Steam 1 RUN: 1de7eda7-5a8e-4522-81b8-41e9e91979d7